[Event "World Junior Chess Championship U20 2022"]
[White "Ghimpu, Samuel-Timotei"]
[Black "Mendonca, Leon Luke"]
[WhiteFideId "1238175"]
[BlackFideId "35028561"]
[WhiteElo "2434"]
[BlackElo "2558"]
[Result "1-0"]
[Round "02"]
[TimeControl "5400+30"]
[Date "2022.10.13"]
[WhiteClock "0:32:03"]
[BlackClock "0:28:41"]

1. e4 {[%clk 1:30:32]}  c5 {[%clk 1:29:47]} 2. Nf3 {[%clk 1:30:37]}  d6 {[%clk 1:30:12]} 3. d4 {[%clk 1:30:04]}  cxd4 {[%clk 1:30:37]} 4. Nxd4 {[%clk 1:30:24]}  Nf6 {[%clk 1:31:01]} 5. f3 {[%clk 1:30:42]}  e5 {[%clk 1:24:29]} 6. Nb3 {[%clk 1:29:39]}  Be6 {[%clk 1:24:00]} 7. c4 {[%clk 1:29:25]}  a5 {[%clk 1:24:23]} 8. Be3 {[%clk 1:28:34]}  b5 {[%clk 1:21:08]} 9. cxb5 {[%clk 1:16:05]}  d5 {[%clk 0:59:47]} 10. exd5 {[%clk 0:44:49]}  Nxd5 {[%clk 0:59:59]} 11. Bf2 {[%clk 0:45:04]}  Bb4+ {[%clk 0:56:53]} 12. N3d2 {[%clk 0:43:56]}  Nd7 {[%clk 0:29:49]} 13. Bc4 {[%clk 0:40:39]}  Ne3 {[%clk 0:20:59]} 14. Bxe3 {[%clk 0:40:24]}  Bxc4 {[%clk 0:20:43]} 15. a3 {[%clk 0:21:03]}  Bxd2+ {[%clk 0:16:45]} 16. Qxd2 {[%clk 0:21:24]}  Bxb5 {[%clk 0:15:50]} 17. Nc3 {[%clk 0:21:37]}  Bc6 {[%clk 0:15:27]} 18. O-O {[%clk 0:17:05]}  O-O {[%clk 0:12:55]} 19. b4 {[%clk 0:13:21]}  axb4 {[%clk 0:10:14]} 20. axb4 {[%clk 0:13:44]}  Nf6 {[%clk 0:07:48]} 21. b5 {[%clk 0:08:46]}  Qxd2 {[%clk 0:02:46]} 22. Bxd2 {[%clk 0:09:09]}  Rxa1 {[%clk 0:01:27]} 23. Rxa1 {[%clk 0:09:32]}  Ra8 {[%clk 0:01:48]} 24. Re1 {[%clk 0:09:32]}  Bb7 {[%clk 0:00:46]} 25. Rxe5 {[%clk 0:09:57]}  Re8 {[%clk 0:01:06]} 26. Rc5 {[%clk 0:04:06]}  Rc8 {[%clk 0:01:04]} 27. Na4 {[%clk 0:03:10]}  Nd7 {[%clk 0:01:00]} 28. Rxc8+ {[%clk 0:03:15]}  Bxc8 {[%clk 0:01:30]} 29. Kf2 {[%clk 0:03:31]}  f6 {[%clk 0:00:45]} 30. Ke3 {[%clk 0:03:25]}  Kf7 {[%clk 0:00:44]} 31. Kd4 {[%clk 0:03:27]}  Ke7 {[%clk 0:00:47]} 32. Nc5 {[%clk 0:02:29]}  g6 {[%clk 0:00:31]} 33. Bb4 {[%clk 0:01:43]}  Kd8 {[%clk 0:00:33]} 34. Ba5+ {[%clk 0:00:40]}  Ke7 {[%clk 0:00:54]} 35. Kd5 {[%clk 0:00:58]}  Nb8 {[%clk 0:00:32]} 36. Bc7 {[%clk 0:01:00]}  Nd7 {[%clk 0:00:55]} 37. Bd6+ {[%clk 0:00:51]}  Kd8 {[%clk 0:00:36]} 38. Ne6+ {[%clk 0:01:02]}  Ke8 {[%clk 0:01:05]} 39. Nc7+ {[%clk 0:01:09]}  Kd8 {[%clk 0:01:25]} 40. Ne6+ {[%clk 0:01:12]}  Ke8 {[%clk 0:01:55]} 41. Kc6 {[%clk 0:01:33]}  Ne5+ {[%clk 0:28:16]} 42. Bxe5 {[%clk 0:31:49]}  Bxe6 {[%clk 0:28:41]} 43. b6 {[%clk 0:32:03]} 1-0


[Site "http://www.chessbomb.com"]

[Event "World Junior Chess Championship U20 2022"]
[White "Murzin, Volodar"]
[Black "Droin, Augustin"]
[WhiteFideId "44155573"]
[BlackFideId "45105987"]
[WhiteElo "2557"]
[BlackElo "2416"]
[Result "1-0"]
[Round "02"]
[TimeControl "5400+30"]
[Date "2022.10.13"]
[WhiteClock "0:08:20"]
[BlackClock "0:29:40"]

1. e4 {[%clk 1:30:56]}  c5 {[%clk 1:29:16]} 2. Nf3 {[%clk 1:31:19]}  d6 {[%clk 1:29:39]} 3. d4 {[%clk 1:31:41]}  Nf6 {[%clk 1:30:05]} 4. Nc3 {[%clk 1:31:43]}  cxd4 {[%clk 1:30:30]} 5. Nxd4 {[%clk 1:32:06]}  Bd7 {[%clk 1:30:11]} 6. Bg5 {[%clk 1:31:04]}  e6 {[%clk 1:29:35]} 7. f4 {[%clk 1:30:31]}  Nc6 {[%clk 1:28:58]} 8. Qd2 {[%clk 1:23:44]}  h6 {[%clk 1:29:22]} 9. Bxf6 {[%clk 1:10:32]}  Qxf6 {[%clk 1:29:45]} 10. Ndb5 {[%clk 1:10:27]}  O-O-O {[%clk 1:29:27]} 11. O-O-O {[%clk 0:44:35]}  Be8 {[%clk 1:29:47]} 12. Qe3 {[%clk 0:35:44]}  a6 {[%clk 1:29:54]} 13. Nd4 {[%clk 0:36:00]}  g5 {[%clk 1:16:54]} 14. Nxc6 {[%clk 0:25:39]}  Bxc6 {[%clk 1:16:48]} 15. Qb6 {[%clk 0:24:51]}  Qxf4+ {[%clk 1:13:30]} 16. Kb1 {[%clk 0:24:59]}  Qe5 {[%clk 1:04:05]} 17. Nd5 {[%clk 0:23:18]}  Rd7 {[%clk 0:47:07]} 18. Bxa6 {[%clk 0:22:26]}  Bxd5 {[%clk 0:46:41]} 19. exd5 {[%clk 0:22:35]}  bxa6 {[%clk 0:45:25]} 20. Rhe1 {[%clk 0:21:21]}  Qf6 {[%clk 0:39:18]} 21. Rf1 {[%clk 0:14:12]}  Qg6 {[%clk 0:32:40]} 22. dxe6 {[%clk 0:08:05]}  fxe6 {[%clk 0:32:40]} 23. Rd3 {[%clk 0:08:30]}  Rc7 {[%clk 0:31:42]} 24. Qxa6+ {[%clk 0:08:16]}  Kd7 {[%clk 0:27:42]} 25. Rxf8 {[%clk 0:08:37]}  Rxf8 {[%clk 0:28:07]} 26. Qxd6+ {[%clk 0:09:02]}  Ke8 {[%clk 0:28:35]} 27. Qd8+ {[%clk 0:09:26]}  Kf7 {[%clk 0:29:02]} 28. Rf3+ {[%clk 0:07:10]}  Kg7 {[%clk 0:29:29]} 29. Qxc7+ {[%clk 0:07:32]}  Kg8 {[%clk 0:29:54]} 30. Rxf8+ {[%clk 0:07:48]}  Kxf8 {[%clk 0:30:22]} 31. Qc8+ {[%clk 0:07:50]}  Ke7 {[%clk 0:29:40]} 32. Qb7+ {[%clk 0:08:12]}  Ke8 {[%clk 0:29:24]} 33. a4 {[%clk 0:08:08]}  Qh5 {[%clk 0:29:24]} 34. Qc6+ {[%clk 0:08:32]}  Ke7 {[%clk 0:29:40]} 35. a5 {[%clk 0:08:20]} 1-0


[Site "http://www.chessbomb.com"]

[Event "World Junior Chess Championship U20 2022"]
[White "Petriashvili, Nikoloz"]
[Black "Ivic, Velimir"]
[WhiteFideId "13611216"]
[BlackFideId "950122"]
[WhiteElo "2428"]
[BlackElo "2553"]
[Result "1/2-1/2"]
[Round "02"]
[TimeControl "5400+30"]
[Date "2022.10.13"]
[WhiteClock "0:46:38"]
[BlackClock "0:01:09"]

1. e4 {[%clk 1:30:24]}  c5 {[%clk 1:29:51]} 2. Nc3 {[%clk 1:30:52]}  Nc6 {[%clk 1:29:27]} 3. Nf3 {[%clk 1:30:25]}  g6 {[%clk 1:28:59]} 4. d4 {[%clk 1:29:48]}  cxd4 {[%clk 1:29:23]} 5. Nxd4 {[%clk 1:30:16]}  Bg7 {[%clk 1:29:43]} 6. Be3 {[%clk 1:30:43]}  Nf6 {[%clk 1:30:09]} 7. Bc4 {[%clk 1:31:11]}  O-O {[%clk 1:30:16]} 8. Bb3 {[%clk 1:30:15]}  d6 {[%clk 1:26:15]} 9. f3 {[%clk 1:30:29]}  Bd7 {[%clk 1:25:53]} 10. Qd2 {[%clk 1:30:54]}  Nxd4 {[%clk 1:25:10]} 11. Bxd4 {[%clk 1:31:18]}  b5 {[%clk 1:25:29]} 12. Nd5 {[%clk 1:25:28]}  Nxd5 {[%clk 1:21:18]} 13. Bxd5 {[%clk 1:21:53]}  Rc8 {[%clk 1:19:25]} 14. c3 {[%clk 1:20:25]}  a5 {[%clk 1:15:17]} 15. a3 {[%clk 1:20:10]}  Bxd4 {[%clk 1:07:38]} 16. Qxd4 {[%clk 1:19:22]}  Qc7 {[%clk 1:06:01]} 17. O-O {[%clk 1:18:22]}  Qc5 {[%clk 1:03:53]} 18. Rac1 {[%clk 1:15:01]}  Rc7 {[%clk 1:01:38]} 19. Rfd1 {[%clk 1:13:09]}  Rfc8 {[%clk 0:55:49]} 20. Ra1 {[%clk 1:10:34]}  Qxd4+ {[%clk 0:51:48]} 21. Rxd4 {[%clk 1:10:26]}  Kg7 {[%clk 0:52:07]} 22. h4 {[%clk 1:10:03]}  Rc5 {[%clk 0:49:46]} 23. Kf2 {[%clk 1:09:27]}  Kf6 {[%clk 0:43:15]} 24. Ke3 {[%clk 1:06:52]}  e6 {[%clk 0:39:42]} 25. Bb3 {[%clk 1:05:06]}  Ke7 {[%clk 0:39:55]} 26. Rad1 {[%clk 1:05:15]}  R8c6 {[%clk 0:40:07]} 27. f4 {[%clk 1:02:08]}  Bc8 {[%clk 0:37:20]} 28. g3 {[%clk 1:01:31]}  Rb6 {[%clk 0:37:16]} 29. R1d2 {[%clk 1:00:05]}  h6 {[%clk 0:35:55]} 30. Rd1 {[%clk 0:59:18]}  f5 {[%clk 0:24:10]} 31. R1d2 {[%clk 0:57:30]}  fxe4 {[%clk 0:16:04]} 32. Rxe4 {[%clk 0:57:22]}  e5 {[%clk 0:15:30]} 33. fxe5 {[%clk 0:47:15]}  dxe5 {[%clk 0:14:04]} 34. Ke2 {[%clk 0:43:03]}  Bf5 {[%clk 0:10:26]} 35. Re3 {[%clk 0:41:30]}  g5 {[%clk 0:09:52]} 36. hxg5 {[%clk 0:34:36]}  hxg5 {[%clk 0:10:16]} 37. Rd5 {[%clk 0:33:56]}  Rxd5 {[%clk 0:10:16]} 38. Bxd5 {[%clk 0:34:18]}  Rd6 {[%clk 0:04:23]} 39. c4 {[%clk 0:29:58]}  bxc4 {[%clk 0:03:50]} 40. Bxc4 {[%clk 0:30:18]}  Bg4+ {[%clk 0:02:57]} 41. Ke1 {[%clk 0:30:00]}  Rd1+ {[%clk 0:01:21]} 42. Kf2 {[%clk 0:30:22]}  Rd2+ {[%clk 0:17:16]} 43. Ke1 {[%clk 1:00:22]}  Rd1+ {[%clk 0:17:42]} 44. Kf2 {[%clk 1:00:48]}  Kd6 {[%clk 0:16:54]} 45. b4 {[%clk 0:58:40]}  Rd2+ {[%clk 0:15:59]} 46. Ke1 {[%clk 0:59:09]}  Rd1+ {[%clk 0:16:24]} 47. Kf2 {[%clk 0:59:34]}  axb4 {[%clk 0:16:20]} 48. axb4 {[%clk 1:00:01]}  Rd2+ {[%clk 0:14:21]} 49. Ke1 {[%clk 1:00:30]}  Rc2 {[%clk 0:13:53]} 50. Bb3 {[%clk 0:58:31]}  Rb2 {[%clk 0:13:43]} 51. Rd3+ {[%clk 0:53:20]}  Kc7 {[%clk 0:13:26]} 52. Rc3+ {[%clk 0:51:14]}  Kd6 {[%clk 0:11:31]} 53. Rd3+ {[%clk 0:49:48]}  Ke7 {[%clk 0:11:49]} 54. Rc3 {[%clk 0:47:15]}  Be6 {[%clk 0:06:51]} 55. Bxe6 {[%clk 0:47:24]}  Kxe6 {[%clk 0:07:18]} 56. Rc4 {[%clk 0:47:25]}  Rg2 {[%clk 0:04:49]} 57. Rc3 {[%clk 0:47:17]}  Kd5 {[%clk 0:04:54]} 58. Rd3+ {[%clk 0:45:37]}  Kc4 {[%clk 0:04:00]} 59. Re3 {[%clk 0:45:54]}  Kd4 {[%clk 0:03:47]} 60. Rb3 {[%clk 0:46:13]}  Kc4 {[%clk 0:00:58]} 61. Re3 {[%clk 0:46:38]}  Kd4 {[%clk 0:01:09]} 1/2-1/2


[Site "http://www.chessbomb.com"]

[Event "World Junior Chess Championship U20 2022"]
[White "Sokolovsky, Yahli"]
[Black "Iniyan, P"]
[WhiteFideId "2820242"]
[BlackFideId "25002767"]
[WhiteElo "2416"]
[BlackElo "2541"]
[Result "1-0"]
[Round "02"]
[TimeControl "5400+30"]
[Date "2022.10.13"]
[WhiteClock "0:07:16"]
[BlackClock "0:07:49"]

1. e4 {[%clk 1:29:02]}  c5 {[%clk 1:30:30]} 2. Nf3 {[%clk 1:29:27]}  d6 {[%clk 1:30:37]} 3. d4 {[%clk 1:29:53]}  cxd4 {[%clk 1:30:58]} 4. Nxd4 {[%clk 1:30:20]}  Nf6 {[%clk 1:31:10]} 5. Nc3 {[%clk 1:30:44]}  a6 {[%clk 1:31:24]} 6. Bd3 {[%clk 1:31:02]}  e5 {[%clk 1:27:13]} 7. Nde2 {[%clk 1:31:13]}  Be7 {[%clk 1:26:03]} 8. O-O {[%clk 1:31:26]}  Nbd7 {[%clk 1:25:33]} 9. a4 {[%clk 1:25:28]}  h6 {[%clk 1:17:40]} 10. Be3 {[%clk 1:21:34]}  Nc5 {[%clk 1:15:19]} 11. Kh1 {[%clk 1:20:00]}  Bd7 {[%clk 1:07:27]} 12. Bxc5 {[%clk 1:03:56]}  dxc5 {[%clk 1:07:45]} 13. Bc4 {[%clk 1:04:22]}  O-O {[%clk 1:02:55]} 14. Ng3 {[%clk 1:03:33]}  g6 {[%clk 0:56:49]} 15. Nd5 {[%clk 0:58:00]}  Nxd5 {[%clk 0:55:26]} 16. Bxd5 {[%clk 0:58:23]}  Qc7 {[%clk 0:55:37]} 17. c4 {[%clk 0:54:20]}  Rad8 {[%clk 0:52:03]} 18. Ne2 {[%clk 0:49:56]}  Kg7 {[%clk 0:51:20]} 19. Nc3 {[%clk 0:49:15]}  Bc8 {[%clk 0:50:39]} 20. a5 {[%clk 0:47:28]}  h5 {[%clk 0:49:37]} 21. Qe1 {[%clk 0:44:24]}  h4 {[%clk 0:43:28]} 22. Na4 {[%clk 0:39:04]}  Bd7 {[%clk 0:39:22]} 23. Nb6 {[%clk 0:37:47]}  Be8 {[%clk 0:38:53]} 24. Qc3 {[%clk 0:36:49]}  Bf6 {[%clk 0:37:20]} 25. Rae1 {[%clk 0:36:43]}  Rh8 {[%clk 0:36:11]} 26. Re2 {[%clk 0:28:15]}  Rh5 {[%clk 0:34:42]} 27. Kg1 {[%clk 0:18:40]}  Rb8 {[%clk 0:27:30]} 28. b3 {[%clk 0:17:38]}  Qd6 {[%clk 0:24:18]} 29. Qh3 {[%clk 0:16:02]}  Bd8 {[%clk 0:24:05]} 30. Nc8 {[%clk 0:12:20]}  Qc7 {[%clk 0:22:08]} 31. Nb6 {[%clk 0:12:44]}  Qd6 {[%clk 0:22:34]} 32. Qc3 {[%clk 0:08:31]}  Qf6 {[%clk 0:19:43]} 33. f4 {[%clk 0:04:24]}  exf4 {[%clk 0:16:53]} 34. e5 {[%clk 0:04:50]}  Qg5 {[%clk 0:17:03]} 35. Qh3 {[%clk 0:01:58]}  Bc7 {[%clk 0:13:50]} 36. e6 {[%clk 0:01:47]}  f6 {[%clk 0:13:17]} 37. Nd7 {[%clk 0:01:16]}  Rd8 {[%clk 0:12:12]} 38. Bxb7 {[%clk 0:00:37]}  Qf5 {[%clk 0:10:17]} 39. Qxf5 {[%clk 0:00:47]}  Rxf5 {[%clk 0:10:39]} 40. Rd1 {[%clk 0:00:32]}  Bxa5 {[%clk 0:05:03]} 41. Rd3 {[%clk 0:21:58]}  Bc7 {[%clk 0:29:35]} 42. Bc6 {[%clk 0:20:31]}  Rc8 {[%clk 0:27:05]} 43. Bb7 {[%clk 0:13:44]}  Rd8 {[%clk 0:27:10]} 44. Red2 {[%clk 0:12:46]}  Ba5 {[%clk 0:16:58]} 45. Rd1 {[%clk 0:11:36]}  Kh6 {[%clk 0:11:38]} 46. Be4 {[%clk 0:09:31]}  Rg5 {[%clk 0:09:50]} 47. Nxf6 {[%clk 0:09:54]}  Rb8 {[%clk 0:09:56]} 48. Rd7 {[%clk 0:07:10]}  Bxd7 {[%clk 0:07:47]} 49. Rxd7 {[%clk 0:07:38]}  Rh5 {[%clk 0:08:05]} 50. e7 {[%clk 0:06:56]}  Re5 {[%clk 0:07:49]} 51. Ng4+ {[%clk 0:07:16]} 1-0


[Site "http://www.chessbomb.com"]

[Event "World Junior Chess Championship U20 2022"]
[White "Sonis, Francesco"]
[Black "Siddharth, Jagadeesh"]
[WhiteFideId "895733"]
[BlackFideId "5818320"]
[WhiteElo "2531"]
[BlackElo "2415"]
[Result "1-0"]
[Round "02"]
[TimeControl "5400+30"]
[Date "2022.10.13"]
[WhiteClock "0:04:36"]
[BlackClock "0:00:33"]

1. Nf3 {[%clk 1:30:58]}  d5 {[%clk 1:25:22]} 2. e3 {[%clk 1:30:03]}  Nf6 {[%clk 1:25:10]} 3. c4 {[%clk 1:30:31]}  e6 {[%clk 1:25:30]} 4. b3 {[%clk 1:30:55]}  b6 {[%clk 1:25:40]} 5. Bb2 {[%clk 1:31:12]}  Bb7 {[%clk 1:25:39]} 6. Nc3 {[%clk 1:31:37]}  Nbd7 {[%clk 1:26:02]} 7. Rc1 {[%clk 1:31:01]}  a6 {[%clk 1:26:26]} 8. cxd5 {[%clk 1:28:57]}  exd5 {[%clk 1:25:24]} 9. Ne2 {[%clk 1:25:07]}  Bd6 {[%clk 1:15:27]} 10. Ned4 {[%clk 1:20:08]}  c5 {[%clk 1:15:39]} 11. Nf5 {[%clk 1:20:16]}  Bf8 {[%clk 1:16:01]} 12. d4 {[%clk 1:18:34]}  g6 {[%clk 1:16:07]} 13. Ng3 {[%clk 1:18:24]}  Bd6 {[%clk 1:04:55]} 14. Ne5 {[%clk 1:13:08]}  O-O {[%clk 0:55:08]} 15. Be2 {[%clk 1:03:58]}  Qe7 {[%clk 0:48:47]} 16. Nxd7 {[%clk 1:01:58]}  Nxd7 {[%clk 0:49:07]} 17. Bf3 {[%clk 1:01:41]}  cxd4 {[%clk 0:44:51]} 18. Qxd4 {[%clk 0:44:51]}  Be5 {[%clk 0:44:59]} 19. Qd2 {[%clk 0:45:19]}  Bxb2 {[%clk 0:45:02]} 20. Qxb2 {[%clk 0:45:48]}  Ne5 {[%clk 0:45:17]} 21. Qd4 {[%clk 0:45:41]}  Rac8 {[%clk 0:29:01]} 22. O-O {[%clk 0:39:43]}  Nxf3+ {[%clk 0:27:44]} 23. gxf3 {[%clk 0:40:11]}  Rc5 {[%clk 0:27:24]} 24. Rcd1 {[%clk 0:39:24]}  Qe6 {[%clk 0:26:15]} 25. Rd2 {[%clk 0:26:13]}  Rfc8 {[%clk 0:26:02]} 26. Kg2 {[%clk 0:26:01]}  f6 {[%clk 0:21:37]} 27. Rfd1 {[%clk 0:24:41]}  Qe5 {[%clk 0:21:28]} 28. Qb4 {[%clk 0:23:22]}  Qe6 {[%clk 0:18:32]} 29. Ne2 {[%clk 0:20:39]}  b5 {[%clk 0:18:15]} 30. Qf4 {[%clk 0:19:40]}  Qe5 {[%clk 0:18:01]} 31. Qg4 {[%clk 0:19:52]}  R8c7 {[%clk 0:17:20]} 32. Nf4 {[%clk 0:17:38]}  Bc8 {[%clk 0:04:24]} 33. Qg3 {[%clk 0:17:53]}  Bb7 {[%clk 0:02:31]} 34. Qg4 {[%clk 0:16:27]}  Bc8 {[%clk 0:02:59]} 35. Qg3 {[%clk 0:16:38]}  Bb7 {[%clk 0:03:28]} 36. e4 {[%clk 0:12:37]}  Rd7 {[%clk 0:00:48]} 37. exd5 {[%clk 0:11:25]}  g5 {[%clk 0:00:49]} 38. Qh3 {[%clk 0:05:04]}  Bc8 {[%clk 0:00:33]} 39. Nd3 {[%clk 0:04:49]}  Rdxd5 {[%clk 0:00:33]} 40. Qh5 {[%clk 0:04:36]} 1-0


[Site "http://www.chessbomb.com"]

[Event "World Junior Chess Championship U20 2022"]
[White "Milikow, Yoav"]
[Black "Budisavljevic, Luka"]
[WhiteFideId "2822237"]
[BlackFideId "960047"]
[WhiteElo "2412"]
[BlackElo "2524"]
[Result "1/2-1/2"]
[Round "02"]
[TimeControl "5400+30"]
[Date "2022.10.13"]
[WhiteClock "0:52:46"]
[BlackClock "0:07:59"]

1. d4 {[%clk 1:30:57]}  e6 {[%clk 1:30:43]} 2. c4 {[%clk 1:31:21]}  Nf6 {[%clk 1:30:50]} 3. Nc3 {[%clk 1:31:21]}  Bb4 {[%clk 1:31:16]} 4. Qc2 {[%clk 1:32:07]}  d5 {[%clk 1:31:28]} 5. a3 {[%clk 1:32:17]}  Bxc3+ {[%clk 1:31:37]} 6. Qxc3 {[%clk 1:32:41]}  O-O {[%clk 1:31:37]} 7. Nf3 {[%clk 1:33:01]}  dxc4 {[%clk 1:32:28]} 8. Qxc4 {[%clk 1:33:26]}  b6 {[%clk 1:32:52]} 9. Bg5 {[%clk 1:33:46]}  Ba6 {[%clk 1:33:17]} 10. Qa4 {[%clk 1:34:06]}  h6 {[%clk 1:33:43]} 11. Bh4 {[%clk 1:34:25]}  c5 {[%clk 1:34:09]} 12. dxc5 {[%clk 1:34:31]}  bxc5 {[%clk 1:34:34]} 13. Rc1 {[%clk 1:34:41]}  Qb6 {[%clk 1:34:59]} 14. Bxf6 {[%clk 1:34:53]}  gxf6 {[%clk 1:35:27]} 15. Rc2 {[%clk 1:34:46]}  c4 {[%clk 1:35:55]} 16. e3 {[%clk 1:34:54]}  Bb5 {[%clk 1:36:19]} 17. Qb4 {[%clk 1:35:20]}  Rc8 {[%clk 1:36:46]} 18. Be2 {[%clk 1:35:20]}  Na6 {[%clk 1:37:12]} 19. Qc3 {[%clk 1:32:49]}  Ba4 {[%clk 1:37:38]} 20. Rd2 {[%clk 1:27:19]}  Nc5 {[%clk 0:31:48]} 21. Qxc4 {[%clk 1:25:09]}  Nb3 {[%clk 0:31:00]} 22. Qg4+ {[%clk 1:23:10]}  Kf8 {[%clk 0:24:45]} 23. Qxa4 {[%clk 1:15:33]}  Nxd2 {[%clk 0:24:52]} 24. Nxd2 {[%clk 1:15:53]}  Qxb2 {[%clk 0:24:19]} 25. Bf3 {[%clk 1:09:45]}  Rc1+ {[%clk 0:20:06]} 26. Ke2 {[%clk 1:06:52]}  Rd8 {[%clk 0:20:28]} 27. Rd1 {[%clk 1:06:52]}  Rxd1 {[%clk 0:20:44]} 28. Qxd1 {[%clk 1:07:20]}  f5 {[%clk 0:09:48]} 29. a4 {[%clk 0:59:40]}  e5 {[%clk 0:10:14]} 30. g4 {[%clk 0:57:36]}  e4 {[%clk 0:07:07]} 31. Bg2 {[%clk 0:57:36]}  fxg4 {[%clk 0:07:35]} 32. Bxe4 {[%clk 0:52:46]}  Qe5 {[%clk 0:07:59]} 1/2-1/2


[Site "http://www.chessbomb.com"]

[Event "World Junior Chess Championship U20 2022"]
[White "Batsuren, Dambasuren"]
[Black "Veiga, Jose Francisco R P Neves"]
[WhiteFideId "4902920"]
[BlackFideId "1930087"]
[WhiteElo "2522"]
[BlackElo "2409"]
[Result "1-0"]
[Round "02"]
[TimeControl "5400+30"]
[Date "2022.10.13"]
[WhiteClock "0:06:40"]
[BlackClock "0:01:38"]

1. d4 {[%clk 1:30:58]}  Nf6 {[%clk 1:29:01]} 2. c4 {[%clk 1:31:19]}  g6 {[%clk 1:29:11]} 3. g3 {[%clk 1:31:33]}  Bg7 {[%clk 1:29:20]} 4. Bg2 {[%clk 1:31:51]}  O-O {[%clk 1:29:37]} 5. Nc3 {[%clk 1:32:00]}  d6 {[%clk 1:29:37]} 6. Nf3 {[%clk 1:32:01]}  c5 {[%clk 1:29:44]} 7. d5 {[%clk 1:30:41]}  e6 {[%clk 1:27:12]} 8. O-O {[%clk 1:30:48]}  exd5 {[%clk 1:26:39]} 9. cxd5 {[%clk 1:31:08]}  Re8 {[%clk 1:23:47]} 10. Re1 {[%clk 1:27:43]}  a6 {[%clk 1:21:17]} 11. a4 {[%clk 1:27:30]}  Nbd7 {[%clk 1:16:37]} 12. e4 {[%clk 1:25:14]}  Qc7 {[%clk 1:08:50]} 13. Bf1 {[%clk 1:15:37]}  Ne5 {[%clk 1:00:38]} 14. Nxe5 {[%clk 1:03:27]}  Rxe5 {[%clk 1:00:24]} 15. Bf4 {[%clk 1:03:18]}  Re8 {[%clk 0:58:20]} 16. e5 {[%clk 1:01:33]}  dxe5 {[%clk 0:56:51]} 17. d6 {[%clk 1:01:31]}  Qd8 {[%clk 0:45:53]} 18. Bxe5 {[%clk 0:59:41]}  Bd7 {[%clk 0:29:47]} 19. Bg2 {[%clk 0:39:39]}  Rb8 {[%clk 0:29:19]} 20. a5 {[%clk 0:39:49]}  Re6 {[%clk 0:26:44]} 21. Qd2 {[%clk 0:34:02]}  Ne8 {[%clk 0:18:41]} 22. Bxg7 {[%clk 0:31:51]}  Rxd6 {[%clk 0:11:54]} 23. Qf4 {[%clk 0:25:38]}  Kxg7 {[%clk 0:11:52]} 24. Ne4 {[%clk 0:25:46]}  Rc6 {[%clk 0:06:26]} 25. Nxc5 {[%clk 0:23:31]}  Rf6 {[%clk 0:03:17]} 26. Qe5 {[%clk 0:23:11]}  Bc6 {[%clk 0:01:12]} 27. Bxc6 {[%clk 0:21:45]}  bxc6 {[%clk 0:01:41]} 28. Ne4 {[%clk 0:21:53]}  Rb5 {[%clk 0:01:51]} 29. Qc3 {[%clk 0:22:17]}  Nd6 {[%clk 0:01:49]} 30. Nxf6 {[%clk 0:18:07]}  Qxf6 {[%clk 0:02:17]} 31. Re7 {[%clk 0:16:50]}  Qxc3 {[%clk 0:01:02]} 32. bxc3 {[%clk 0:17:18]}  Nc4 {[%clk 0:00:37]} 33. Ra7 {[%clk 0:15:37]}  Nxa5 {[%clk 0:00:50]} 34. Rxa6 {[%clk 0:15:59]}  Nb3 {[%clk 0:01:09]} 35. Rb1 {[%clk 0:15:57]}  c5 {[%clk 0:01:29]} 36. Rc6 {[%clk 0:13:35]}  Rb7 {[%clk 0:01:34]} 37. g4 {[%clk 0:10:43]}  Kf8 {[%clk 0:01:20]} 38. Kg2 {[%clk 0:09:59]}  Ke7 {[%clk 0:01:41]} 39. g5 {[%clk 0:08:36]}  Kd7 {[%clk 0:01:38]} 40. Rf6 {[%clk 0:08:33]}  Ke7 {[%clk 0:01:55]} 41. h4 {[%clk 0:06:34]}  c4 {[%clk 0:01:38]} 42. Rc6 {[%clk 0:06:40]} 1-0


[Site "http://www.chessbomb.com"]

[Event "World Junior Chess Championship U20 2022"]
[White "Kanyamarala, Tarun"]
[Black "Seo, Jung Min"]
[WhiteFideId "45004714"]
[BlackFideId "1734687"]
[WhiteElo "2407"]
[BlackElo "2520"]
[Result "1/2-1/2"]
[Round "02"]
[TimeControl "5400+30"]
[Date "2022.10.13"]
[WhiteClock "0:20:51"]
[BlackClock "0:43:24"]

1. d4 {[%clk 1:27:32]}  Nf6 {[%clk 1:30:57]} 2. c4 {[%clk 1:27:43]}  e6 {[%clk 1:31:25]} 3. Nc3 {[%clk 1:27:43]}  Bb4 {[%clk 1:31:52]} 4. e3 {[%clk 1:28:03]}  O-O {[%clk 1:32:12]} 5. Bd3 {[%clk 1:28:06]}  d5 {[%clk 1:31:51]} 6. Nf3 {[%clk 1:28:26]}  c5 {[%clk 1:30:44]} 7. O-O {[%clk 1:28:43]}  dxc4 {[%clk 1:27:37]} 8. Bxc4 {[%clk 1:29:00]}  Nc6 {[%clk 1:26:40]} 9. a3 {[%clk 1:29:11]}  Bxc3 {[%clk 1:26:08]} 10. bxc3 {[%clk 1:29:29]}  Qc7 {[%clk 1:25:51]} 11. Bb2 {[%clk 1:29:37]}  h6 {[%clk 1:25:11]} 12. Qe2 {[%clk 1:26:33]}  e5 {[%clk 1:25:24]} 13. h3 {[%clk 1:26:13]}  Bf5 {[%clk 1:20:30]} 14. Bb5 {[%clk 1:21:45]}  e4 {[%clk 1:18:07]} 15. Nd2 {[%clk 1:21:57]}  a6 {[%clk 1:07:09]} 16. Bxc6 {[%clk 1:20:55]}  Qxc6 {[%clk 1:07:35]} 17. c4 {[%clk 1:19:34]}  cxd4 {[%clk 1:07:09]} 18. exd4 {[%clk 1:19:49]}  Rfe8 {[%clk 1:01:26]} 19. Rfd1 {[%clk 1:09:32]}  Rac8 {[%clk 0:57:15]} 20. Rac1 {[%clk 1:08:23]}  Nd7 {[%clk 0:54:58]} 21. Nf1 {[%clk 1:00:40]}  Bg6 {[%clk 0:50:19]} 22. Ne3 {[%clk 0:58:50]}  f5 {[%clk 0:50:04]} 23. c5 {[%clk 0:40:49]}  f4 {[%clk 0:46:19]} 24. d5 {[%clk 0:40:50]}  Qb5 {[%clk 0:46:20]} 25. Qxb5 {[%clk 0:40:36]}  axb5 {[%clk 0:46:47]} 26. c6 {[%clk 0:40:39]}  bxc6 {[%clk 0:43:43]} 27. dxc6 {[%clk 0:40:24]}  Nb6 {[%clk 0:25:19]} 28. Bd4 {[%clk 0:33:15]}  Nc4 {[%clk 0:21:57]} 29. Nxc4 {[%clk 0:30:28]}  bxc4 {[%clk 0:21:37]} 30. Rxc4 {[%clk 0:29:08]}  e3 {[%clk 0:22:01]} 31. fxe3 {[%clk 0:23:36]}  fxe3 {[%clk 0:22:28]} 32. Re1 {[%clk 0:21:49]}  e2 {[%clk 0:22:49]} 33. Bf2 {[%clk 0:08:58]}  Bd3 {[%clk 0:16:18]} 34. Rc3 {[%clk 0:09:13]}  Ba6 {[%clk 0:16:30]} 35. c7 {[%clk 0:07:56]}  Rf8 {[%clk 0:14:53]} 36. Bg3 {[%clk 0:03:42]}  Rf1+ {[%clk 0:15:18]} 37. Kh2 {[%clk 0:04:04]}  Kf7 {[%clk 0:15:01]} 38. Rc6 {[%clk 0:01:54]}  Bb5 {[%clk 0:13:46]} 39. Rc5 {[%clk 0:01:30]}  Ba6 {[%clk 0:14:02]} 40. Rc6 {[%clk 0:00:38]}  Bb5 {[%clk 0:13:46]} 41. Rc2 {[%clk 0:22:15]}  Rxe1 {[%clk 0:38:46]} 42. Bxe1 {[%clk 0:22:38]}  Ke7 {[%clk 0:38:28]} 43. Bg3 {[%clk 0:19:51]}  Kd7 {[%clk 0:38:36]} 44. a4 {[%clk 0:19:37]}  Ba6 {[%clk 0:39:10]} 45. Rd2+ {[%clk 0:18:54]}  Ke7 {[%clk 0:39:04]} 46. Kg1 {[%clk 0:16:39]}  Rxc7 {[%clk 0:38:41]} 47. Rxe2+ {[%clk 0:16:58]}  Bxe2 {[%clk 0:39:09]} 48. Bxc7 {[%clk 0:17:23]}  Kd7 {[%clk 0:39:35]} 49. Be5 {[%clk 0:17:43]}  g6 {[%clk 0:40:03]} 50. Kf2 {[%clk 0:18:03]}  Bc4 {[%clk 0:40:26]} 51. g4 {[%clk 0:18:12]}  h5 {[%clk 0:40:53]} 52. gxh5 {[%clk 0:18:30]}  gxh5 {[%clk 0:40:53]} 53. h4 {[%clk 0:18:51]}  Kc6 {[%clk 0:41:46]} 54. Ke3 {[%clk 0:19:16]}  Kb7 {[%clk 0:42:13]} 55. a5 {[%clk 0:19:34]}  Ka6 {[%clk 0:42:39]} 56. Kf4 {[%clk 0:19:59]}  Kxa5 {[%clk 0:43:01]} 57. Bd4 {[%clk 0:20:24]}  Kb5 {[%clk 0:43:24]} 58. Be5 {[%clk 0:20:51]} 1/2-1/2


[Site "http://www.chessbomb.com"]